[Event "*** Titled Tuesday Blitz"]
[Site "Chess.com"]
[Date "2020.11.10"]
[Round "1"]
[White "Happy1712Drummer"]
[Black "TST2014"]
[Result "1-0"]
[WhiteElo "2176"]
[BlackElo "2517"]
[TimeControl "180+1"]
[EndTime "10:08:44 PST"]
[Termination "Happy1712Drummer won on time"]

1. d4 {[%clk 0:02:59.8]} 1... Nf6 {[%clk 0:02:57.1]} 2. c4 {[%clk 0:02:57.6]}
2... c5 {[%clk 0:02:56.8]} 3. d5 {[%clk 0:02:57.2]} 3... b5 {[%clk 0:02:56.2]}
4. a3 {[%clk 0:02:55.3]} 4... bxc4 {[%clk 0:02:52.2]} 5. Nc3 {[%clk 0:02:53.7]}
5... Qa5 {[%clk 0:02:41.3]} 6. Bd2 {[%clk 0:02:43.4]} 6... Ba6 {[%clk
0:02:39.7]} 7. e4 {[%clk 0:02:41.2]} 7... d6 {[%clk 0:02:39.4]} 8. f4 {[%clk
0:02:36.6]} 8... Nbd7 {[%clk 0:02:38]} 9. Nf3 {[%clk 0:02:36.4]} 9... g6 {[%clk
0:02:34.1]} 10. e5 {[%clk 0:02:34.1]} 10... dxe5 {[%clk 0:02:23.8]} 11. fxe5
{[%clk 0:02:35]} 11... Ng4 {[%clk 0:02:24.4]} 12. e6 {[%clk 0:02:32.8]} 12...
Nde5 {[%clk 0:02:09.5]} 13. Ng5 {[%clk 0:02:10]} 13... Nf6 {[%clk 0:01:26.5]}
14. exf7+ {[%clk 0:01:30.5]} 14... Nxf7 {[%clk 0:01:21.9]} 15. Ne6 {[%clk
0:01:26.2]} 15... Bh6 {[%clk 0:01:15.2]} 16. Bxh6 {[%clk 0:01:04.1]} 16... Nxh6
{[%clk 0:01:14.2]} 17. d6 {[%clk 0:00:59.3]} 17... Nf5 {[%clk 0:01:05.9]} 18.
Nc7+ {[%clk 0:00:55.3]} 18... Kf7 {[%clk 0:01:03.5]} 19. Nxa8 {[%clk 0:00:53.1]}
19... Rxa8 {[%clk 0:01:02.9]} 20. Qf3 {[%clk 0:00:52.6]} 20... Rd8 {[%clk
0:00:47]} 21. dxe7 {[%clk 0:00:49.6]} 21... Rd7 {[%clk 0:00:37.3]} 22. Be2
{[%clk 0:00:42.5]} 22... Rxe7 {[%clk 0:00:31.2]} 23. O-O {[%clk 0:00:41.8]}
23... Re3 {[%clk 0:00:26.6]} 24. Qc6 {[%clk 0:00:39.9]} 24... Qb6 {[%clk
0:00:20.3]} 25. Qxb6 {[%clk 0:00:33.2]} 25... axb6 {[%clk 0:00:21.2]} 26. Rae1
{[%clk 0:00:30.2]} 26... h5 {[%clk 0:00:20.3]} 27. h3 {[%clk 0:00:20.1]} 27...
Kg7 {[%clk 0:00:16.5]} 28. Rf3 {[%clk 0:00:18.5]} 28... Re7 {[%clk 0:00:12.4]}
29. Ref1 {[%clk 0:00:16.5]} 29... b5 {[%clk 0:00:12.2]} 30. Bd1 {[%clk
0:00:15.1]} 30... b4 {[%clk 0:00:12.1]} 31. axb4 {[%clk 0:00:15.8]} 31... cxb4
{[%clk 0:00:12.2]} 32. Na4 {[%clk 0:00:16.4]} 32... c3 {[%clk 0:00:12.4]} 33.
bxc3 {[%clk 0:00:16]} 33... Bxf1 {[%clk 0:00:12.2]} 34. Rxf1 {[%clk 0:00:16.8]}
34... Ne3 {[%clk 0:00:12.2]} 35. Re1 {[%clk 0:00:15.7]} 35... bxc3 {[%clk
0:00:10.3]} 36. Nxc3 {[%clk 0:00:15.7]} 36... Ned5 {[%clk 0:00:10.4]} 37. Rxe7+
{[%clk 0:00:14.5]} 37... Nxe7 {[%clk 0:00:11]} 38. Bf3 {[%clk 0:00:14.9]} 38...
Nf5 {[%clk 0:00:11.3]} 39. Ne4 {[%clk 0:00:14.2]} 39... Nd4 {[%clk 0:00:11.3]}
40. Nd2 {[%clk 0:00:12.5]} 40... g5 {[%clk 0:00:10.6]} 41. Bd1 {[%clk
0:00:11.9]} 41... Kg6 {[%clk 0:00:10.1]} 42. Nf3 {[%clk 0:00:11.9]} 42... Nf5
{[%clk 0:00:08.3]} 43. Bc2 {[%clk 0:00:11.1]} 43... Ng8 {[%clk 0:00:03.1]} 44.
Nd4 {[%clk 0:00:10.4]} 44... Ne7 {[%clk 0:00:02.8]} 45. Nxf5 {[%clk 0:00:10]}
45... Nxf5 {[%clk 0:00:02.5]} 46. g4 {[%clk 0:00:10.1]} 46... hxg4 {[%clk
0:00:03]} 47. hxg4 {[%clk 0:00:10.6]} 47... Kf6 {[%clk 0:00:03.7]} 48. Bxf5
{[%clk 0:00:10.9]} 48... Ke5 {[%clk 0:00:04.2]} 49. Kf2 {[%clk 0:00:11.5]} 49...
Kf4 {[%clk 0:00:04.8]} 50. Kg2 {[%clk 0:00:11.5]} 50... Ke3 {[%clk 0:00:05.3]}
51. Kg3 {[%clk 0:00:11.8]} 51... Ke2 {[%clk 0:00:05.7]} 52. Be4 {[%clk
0:00:11.2]} 52... Ke3 {[%clk 0:00:06]} 53. Bf3 {[%clk 0:00:11]} 53... Kd4 {[%clk
0:00:06.1]} 54. Kf2 {[%clk 0:00:11.7]} 54... Kd3 {[%clk 0:00:06.7]} 55. Bg2
{[%clk 0:00:10.3]} 55... Kd2 {[%clk 0:00:06.7]} 56. Kf3 {[%clk 0:00:10.5]} 56...
Kd3 {[%clk 0:00:07.1]} 57. Bf1+ {[%clk 0:00:10.7]} 57... Kd4 {[%clk 0:00:06]}
58. Be2 {[%clk 0:00:10.6]} 58... Ke5 {[%clk 0:00:04.9]} 59. Ke3 {[%clk
0:00:11.5]} 59... Kd5 {[%clk 0:00:05.3]} 60. Bd3 {[%clk 0:00:10.4]} 60... Ke5
{[%clk 0:00:05.6]} 61. Be4 {[%clk 0:00:10.5]} 61... Ke6 {[%clk 0:00:06.1]} 62.
Kd4 {[%clk 0:00:10.9]} 62... Kd6 {[%clk 0:00:06.7]} 63. Bf5 {[%clk 0:00:10.7]}
63... Ke7 {[%clk 0:00:06.5]} 64. Ke5 {[%clk 0:00:11.6]} 64... Kf7 {[%clk
0:00:07.2]} 65. Kd6 {[%clk 0:00:11.5]} 65... Kg7 {[%clk 0:00:07.4]} 66. Ke6
{[%clk 0:00:11.1]} 66... Kh6 {[%clk 0:00:07.9]} 67. Be4 {[%clk 0:00:10.9]} 67...
Kg7 {[%clk 0:00:07.7]} 68. Kf5 {[%clk 0:00:11.1]} 68... Kh6 {[%clk 0:00:08.3]}
69. Bf3 {[%clk 0:00:11.5]} 1-0

[Event "*** Titled Tuesday Blitz"]
[Site "Chess.com"]
[Date "2020.11.10"]
[Round "1"]
[White "dpopadic"]
[Black "mbojan"]
[Result "0-1"]
[WhiteElo "2347"]
[BlackElo "2679"]
[TimeControl "180+1"]
[EndTime "10:08:48 PST"]
[Termination "mbojan won on time"]

1. e4 {[%clk 0:03:00.9]} 1... c6 {[%clk 0:02:58.8]} 2. d4 {[%clk 0:03:00.1]}
2... d5 {[%clk 0:02:59]} 3. Nd2 {[%clk 0:03:00.4]} 3... dxe4 {[%clk 0:02:58.9]}
4. Nxe4 {[%clk 0:03:00.3]} 4... Nf6 {[%clk 0:02:59.2]} 5. Ng3 {[%clk 0:03:00.1]}
5... g6 {[%clk 0:02:57.7]} 6. Nf3 {[%clk 0:02:59.4]} 6... Bg7 {[%clk 0:02:57.7]}
7. Bc4 {[%clk 0:02:52.9]} 7... O-O {[%clk 0:02:57.1]} 8. O-O {[%clk 0:02:51.9]}
8... Nbd7 {[%clk 0:02:48.5]} 9. h3 {[%clk 0:02:46.6]} 9... b5 {[%clk 0:02:44.6]}
10. Bb3 {[%clk 0:02:45.9]} 10... c5 {[%clk 0:02:43]} 11. c3 {[%clk 0:02:43.3]}
11... a6 {[%clk 0:02:35.9]} 12. Be3 {[%clk 0:02:37.2]} 12... cxd4 {[%clk
0:02:35.1]} 13. Nxd4 {[%clk 0:02:31.8]} 13... Bb7 {[%clk 0:02:34.5]} 14. Qe2
{[%clk 0:02:29.3]} 14... Qc7 {[%clk 0:02:33.8]} 15. Rad1 {[%clk 0:02:25]} 15...
Nc5 {[%clk 0:02:12.1]} 16. Bc2 {[%clk 0:02:21.3]} 16... Rad8 {[%clk 0:02:09.4]}
17. Nf3 {[%clk 0:02:14.8]} 17... Ne6 {[%clk 0:01:32.6]} 18. Nd4 {[%clk
0:01:54.2]} 18... Bd5 {[%clk 0:01:27.2]} 19. Bb3 {[%clk 0:01:47.2]} 19... Nc5
{[%clk 0:01:19]} 20. Bxd5 {[%clk 0:01:41.5]} 20... Nxd5 {[%clk 0:01:19.9]} 21.
Bc1 {[%clk 0:01:30.8]} 21... Na4 {[%clk 0:01:02]} 22. Qf3 {[%clk 0:01:13.2]}
22... Nab6 {[%clk 0:00:51.5]} 23. Rfe1 {[%clk 0:01:04.6]} 23... e5 {[%clk
0:00:50.8]} 24. Nb3 {[%clk 0:01:00.3]} 24... f5 {[%clk 0:00:38.2]} 25. Qe2
{[%clk 0:00:46.9]} 25... Rde8 {[%clk 0:00:34.4]} 26. Nf1 {[%clk 0:00:41.8]}
26... Nf6 {[%clk 0:00:30]} 27. Qd3 {[%clk 0:00:36.8]} 27... e4 {[%clk
0:00:28.1]} 28. Qd6 {[%clk 0:00:35.2]} 28... Qa7 {[%clk 0:00:20.5]} 29. Be3
{[%clk 0:00:27.6]} 29... Rb8 {[%clk 0:00:20.6]} 30. Na5 {[%clk 0:00:24.9]} 30...
Ne8 {[%clk 0:00:10.7]} 31. Qe6+ {[%clk 0:00:18.3]} 31... Qf7 {[%clk 0:00:11]}
32. Qxf7+ {[%clk 0:00:16.9]} 32... Rxf7 {[%clk 0:00:11.7]} 33. Nc6 {[%clk
0:00:17]} 33... Rbb7 {[%clk 0:00:12.4]} 34. Nd8 {[%clk 0:00:17]} 34... Nc4
{[%clk 0:00:13]} 35. Nxf7 {[%clk 0:00:16]} 35... Kxf7 {[%clk 0:00:12.8]} 36. b3
{[%clk 0:00:14.8]} 36... Ne5 {[%clk 0:00:11.8]} 37. Bd4 {[%clk 0:00:14.4]} 37...
Nd3 {[%clk 0:00:11.3]} 38. Bxg7 {[%clk 0:00:11]} 38... Nxe1 {[%clk 0:00:08.6]}
39. Rxe1 {[%clk 0:00:10.1]} 39... Kxg7 {[%clk 0:00:06.8]} 40. Rd1 {[%clk
0:00:11]} 40... Nf6 {[%clk 0:00:05.7]} 41. Ne3 {[%clk 0:00:10.6]} 41... Rc7
{[%clk 0:00:06.1]} 42. c4 {[%clk 0:00:10.7]} 42... bxc4 {[%clk 0:00:06.3]} 43.
Nxc4 {[%clk 0:00:10.5]} 43... Kf7 {[%clk 0:00:06.2]} 44. Rd6 {[%clk 0:00:10.1]}
44... Rd7 {[%clk 0:00:06.3]} 45. Ne5+ {[%clk 0:00:08.2]} 45... Ke7 {[%clk
0:00:06.6]} 46. Nxd7 {[%clk 0:00:08.6]} 46... Kxd6 {[%clk 0:00:04.3]} 47. Nxf6
{[%clk 0:00:08.2]} 47... h5 {[%clk 0:00:05]} 48. Ne8+ {[%clk 0:00:06]} 48... Ke5
{[%clk 0:00:05.2]} 49. Nc7 {[%clk 0:00:06]} 49... a5 {[%clk 0:00:05.2]} 50. Kf1
{[%clk 0:00:05.8]} 50... h4 {[%clk 0:00:05.1]} 51. Ke2 {[%clk 0:00:05.6]} 51...
g5 {[%clk 0:00:05.6]} 52. Nb5 {[%clk 0:00:05.1]} 52... Kd5 {[%clk 0:00:05.7]}
53. Nc3+ {[%clk 0:00:04.8]} 53... Kd4 {[%clk 0:00:06.3]} 54. Kd2 {[%clk
0:00:05.3]} 54... f4 {[%clk 0:00:06.5]} 55. Ne2+ {[%clk 0:00:05.8]} 55... Kc5
{[%clk 0:00:07]} 56. Kc3 {[%clk 0:00:06.4]} 56... Kd5 {[%clk 0:00:06.6]} 57. Nd4
{[%clk 0:00:06.3]} 57... Ke5 {[%clk 0:00:05.4]} 58. Ne2 {[%clk 0:00:06.2]} 58...
Kd5 {[%clk 0:00:05.5]} 59. a3 {[%clk 0:00:06.4]} 59... f3 {[%clk 0:00:05.4]} 60.
gxf3 {[%clk 0:00:05.7]} 60... exf3 {[%clk 0:00:06.3]} 61. Ng1 {[%clk 0:00:05.2]}
61... Ke4 {[%clk 0:00:06.8]} 62. Kd2 {[%clk 0:00:05]} 62... Kf4 {[%clk
0:00:06.6]} 63. b4 {[%clk 0:00:03.8]} 63... a4 {[%clk 0:00:05.4]} 64. b5 {[%clk
0:00:03.3]} 64... Ke5 {[%clk 0:00:05.7]} 65. b6 {[%clk 0:00:03.5]} 65... Kd6
{[%clk 0:00:05.9]} 66. Kc3 {[%clk 0:00:04.2]} 66... g4 {[%clk 0:00:05.3]} 67.
hxg4 {[%clk 0:00:01.7]} 67... h3 {[%clk 0:00:06.1]} 68. Nxh3 {[%clk 0:00:01.7]}
68... Kc6 {[%clk 0:00:07]} 0-1

[Event "*** Titled Tuesday Blitz"]
[Site "Chess.com"]
[Date "2020.11.10"]
[Round "1"]
[White "atalz0"]
[Black "Guriempire"]
[Result "1-0"]
[WhiteElo "2401"]
[BlackElo "2725"]
[TimeControl "180+1"]
[EndTime "10:08:57 PST"]
[Termination "atalz0 won by resignation"]

1. d4 {[%clk 0:02:56.3]} 1... Nf6 {[%clk 0:02:59.3]} 2. c4 {[%clk 0:02:56.6]}
2... e6 {[%clk 0:02:59.8]} 3. Nc3 {[%clk 0:02:55.4]} 3... Bb4 {[%clk 0:02:59.1]}
4. Qc2 {[%clk 0:02:55.2]} 4... O-O {[%clk 0:02:57.1]} 5. e4 {[%clk 0:02:54.9]}
5... d6 {[%clk 0:02:57.3]} 6. Bd3 {[%clk 0:02:54.5]} 6... Nc6 {[%clk 0:02:55.4]}
7. Ne2 {[%clk 0:02:54]} 7... e5 {[%clk 0:02:51.7]} 8. d5 {[%clk 0:02:54.1]} 8...
Nd4 {[%clk 0:02:48.2]} 9. Nxd4 {[%clk 0:02:54.4]} 9... exd4 {[%clk 0:02:44.8]}
10. a3 {[%clk 0:02:54.8]} 10... Bxc3+ {[%clk 0:02:42.5]} 11. bxc3 {[%clk
0:02:55.7]} 11... dxc3 {[%clk 0:02:42.5]} 12. O-O {[%clk 0:02:51.4]} 12... Re8
{[%clk 0:02:37.8]} 13. f3 {[%clk 0:02:39.4]} 13... Nd7 {[%clk 0:02:37.5]} 14.
Qxc3 {[%clk 0:02:36.5]} 14... Nc5 {[%clk 0:02:37.9]} 15. Bc2 {[%clk 0:02:30.1]}
15... Bd7 {[%clk 0:02:30.5]} 16. Bb2 {[%clk 0:02:26.9]} 16... f6 {[%clk
0:02:27.2]} 17. Qe3 {[%clk 0:02:20]} 17... Qe7 {[%clk 0:02:26.7]} 18. Bd4 {[%clk
0:02:18.1]} 18... b6 {[%clk 0:02:27.1]} 19. Rae1 {[%clk 0:02:11.8]} 19... Qf7
{[%clk 0:02:24.5]} 20. Qf4 {[%clk 0:02:08.9]} 20... Rac8 {[%clk 0:02:13.3]} 21.
Qh4 {[%clk 0:02:08]} 21... Qg6 {[%clk 0:02:12.4]} 22. Rf2 {[%clk 0:02:02.2]}
22... Re7 {[%clk 0:01:57.9]} 23. Rfe2 {[%clk 0:01:36]} 23... Rce8 {[%clk
0:01:54.8]} 24. Kf1 {[%clk 0:01:14.1]} 24... Ba4 {[%clk 0:01:11.7]} 25. Bb1
{[%clk 0:01:11.7]} 25... Nb3 {[%clk 0:01:07.9]} 26. Bb2 {[%clk 0:00:57.8]} 26...
Bd7 {[%clk 0:00:58.8]} 27. g4 {[%clk 0:00:37.4]} 27... Qf7 {[%clk 0:00:47.9]}
28. e5 {[%clk 0:00:35.9]} 28... Rxe5 {[%clk 0:00:38.4]} 29. Qxh7+ {[%clk
0:00:25.3]} 29... Kf8 {[%clk 0:00:37.9]} 30. Bg6 {[%clk 0:00:14.2]} 30... Nd2+
{[%clk 0:00:25.2]} 31. Kf2 {[%clk 0:00:07.9]} 31... Qg8 {[%clk 0:00:19.4]} 32.
Qxg8+ {[%clk 0:00:06.3]} 32... Kxg8 {[%clk 0:00:20.3]} 33. Bxe5 {[%clk 0:00:06]}
33... dxe5 {[%clk 0:00:19.1]} 34. Rxd2 {[%clk 0:00:06]} 34... Rd8 {[%clk
0:00:18.7]} 35. Bf5 {[%clk 0:00:05.6]} 35... Be8 {[%clk 0:00:18.7]} 36. h4
{[%clk 0:00:05.3]} 36... Kf8 {[%clk 0:00:19.1]} 37. h5 {[%clk 0:00:05.3]} 37...
Ke7 {[%clk 0:00:19.8]} 38. Rh1 {[%clk 0:00:05.3]} 38... Kd6 {[%clk 0:00:19.5]}
39. Be4 {[%clk 0:00:05.8]} 39... Bf7 {[%clk 0:00:19.4]} 40. Rc2 {[%clk
0:00:06.5]} 40... Kc5 {[%clk 0:00:19.3]} 41. h6 {[%clk 0:00:07.1]} 41... g6
{[%clk 0:00:19.3]} 42. h7 {[%clk 0:00:07.2]} 42... Rh8 {[%clk 0:00:19.9]} 43.
Rh6 {[%clk 0:00:06.8]} 43... Kd4 {[%clk 0:00:18.7]} 44. Kg3 {[%clk 0:00:06.9]}
44... Ke3 {[%clk 0:00:18]} 45. Rch2 {[%clk 0:00:07]} 45... f5 {[%clk 0:00:17.3]}
46. gxf5 {[%clk 0:00:06.9]} 46... gxf5 {[%clk 0:00:18.2]} 47. Bxf5 {[%clk
0:00:07.5]} 47... b5 {[%clk 0:00:19.1]} 48. Bg6 {[%clk 0:00:07.6]} 48... bxc4
{[%clk 0:00:16.5]} 49. Bxf7 {[%clk 0:00:07.5]} 49... c3 {[%clk 0:00:17.4]} 50.
Rg6 {[%clk 0:00:06.6]} 50... e4 {[%clk 0:00:18.3]} 51. fxe4 {[%clk 0:00:06.3]}
51... c2 {[%clk 0:00:15.4]} 52. Rxc2 {[%clk 0:00:04.9]} 52... Rxh7 {[%clk
0:00:16]} 53. Rf2 {[%clk 0:00:05.1]} 53... Rh1 {[%clk 0:00:15.3]} 54. Rf3+
{[%clk 0:00:04.9]} 54... Kxe4 {[%clk 0:00:15]} 55. Rg4+ {[%clk 0:00:05.3]} 55...
Ke5 {[%clk 0:00:15.4]} 56. Be6 {[%clk 0:00:05.2]} 56... Kd6 {[%clk 0:00:15.6]}
57. Rgf4 {[%clk 0:00:05.1]} 57... Rg1+ {[%clk 0:00:16]} 58. Kf2 {[%clk
0:00:05.1]} 58... Rg5 {[%clk 0:00:16.6]} 59. Ke3 {[%clk 0:00:05.6]} 59... Kc5
{[%clk 0:00:17]} 60. Rf5 {[%clk 0:00:06.1]} 60... Rg4 {[%clk 0:00:17]} 61. R3f4
{[%clk 0:00:06.1]} 61... Rg3+ {[%clk 0:00:17.1]} 62. Rf3 {[%clk 0:00:06.7]}
62... Rg1 {[%clk 0:00:18]} 63. Ke4 {[%clk 0:00:07.1]} 63... Re1+ {[%clk
0:00:17.8]} 64. Kf4 {[%clk 0:00:07.4]} 64... Rd1 {[%clk 0:00:18.7]} 65. Ke5
{[%clk 0:00:07.4]} 65... Re1+ {[%clk 0:00:18.6]} 66. Kf6 {[%clk 0:00:06.9]}
66... Kd6 {[%clk 0:00:19]} 67. Rc3 {[%clk 0:00:06.4]} 67... c5 {[%clk 0:00:18]}
68. dxc6 {[%clk 0:00:05.9]} 68... Rxe6+ {[%clk 0:00:18.5]} 69. Kg5 {[%clk
0:00:05.9]} 69... Re8 {[%clk 0:00:18.2]} 70. c7 {[%clk 0:00:05.8]} 70... Rc8
{[%clk 0:00:18.6]} 71. Rf6+ {[%clk 0:00:06]} 71... Ke7 {[%clk 0:00:18.6]} 72.
Rg6 {[%clk 0:00:05.6]} 72... Kd7 {[%clk 0:00:18.8]} 73. Rg7+ {[%clk 0:00:06]}
73... Kd6 {[%clk 0:00:19.4]} 74. a4 {[%clk 0:00:06.4]} 74... a6 {[%clk
0:00:19.1]} 75. a5 {[%clk 0:00:06.6]} 75... Kd5 {[%clk 0:00:18.7]} 76. Rg6
{[%clk 0:00:07]} 76... Ke5 {[%clk 0:00:18.6]} 77. Rc1 {[%clk 0:00:07.3]} 77...
Kd5 {[%clk 0:00:18.3]} 78. Rxa6 {[%clk 0:00:07.3]} 78... Rg8+ {[%clk 0:00:17.8]}
79. Rg6 {[%clk 0:00:06.8]} 79... Rc8 {[%clk 0:00:18.3]} 80. Rb6 {[%clk
0:00:06.9]} 80... Ke5 {[%clk 0:00:17.8]} 81. Rb8 {[%clk 0:00:06.3]} 1-0

[Event "*** Titled Tuesday Blitz"]
[Site "Chess.com"]
[Date "2020.11.10"]
[Round "1"]
[White "misterlamine"]
[Black "Aemulus20"]
[Result "0-1"]
[WhiteElo "2270"]
[BlackElo "2587"]
[TimeControl "180+1"]
[EndTime "10:09:03 PST"]
[Termination "Aemulus20 won by resignation"]

1. d4 {[%clk 0:02:47.3]} 1... d5 {[%clk 0:02:58.8]} 2. c4 {[%clk 0:02:46.5]}
2... e6 {[%clk 0:02:58.6]} 3. Nc3 {[%clk 0:02:43.8]} 3... Be7 {[%clk 0:02:59]}
4. Nf3 {[%clk 0:02:42.4]} 4... Nf6 {[%clk 0:02:59.1]} 5. Bg5 {[%clk 0:02:42.5]}
5... O-O {[%clk 0:02:57.2]} 6. e3 {[%clk 0:02:40.6]} 6... c6 {[%clk 0:02:53.2]}
7. Rc1 {[%clk 0:02:28.4]} 7... b6 {[%clk 0:02:52.5]} 8. cxd5 {[%clk 0:02:25.4]}
8... exd5 {[%clk 0:02:50.1]} 9. Bd3 {[%clk 0:02:25.7]} 9... Ba6 {[%clk
0:02:48.8]} 10. O-O {[%clk 0:02:24.8]} 10... Bxd3 {[%clk 0:02:47.4]} 11. Qxd3
{[%clk 0:02:25.7]} 11... Ne4 {[%clk 0:02:47.2]} 12. Bxe7 {[%clk 0:02:24.8]}
12... Qxe7 {[%clk 0:02:48.1]} 13. Ne5 {[%clk 0:02:25.1]} 13... f6 {[%clk
0:02:32.1]} 14. Nxe4 {[%clk 0:02:20.4]} 14... fxe5 {[%clk 0:02:25.1]} 15. Ng3
{[%clk 0:02:13.1]} 15... e4 {[%clk 0:02:23.1]} 16. Qb3 {[%clk 0:02:12.4]} 16...
Rf6 {[%clk 0:02:16.9]} 17. Ne2 {[%clk 0:02:11.4]} 17... Nd7 {[%clk 0:02:02.8]}
18. Nf4 {[%clk 0:02:10.1]} 18... Qd6 {[%clk 0:01:57.9]} 19. Rc2 {[%clk
0:02:01.2]} 19... Raf8 {[%clk 0:01:52.1]} 20. Rfc1 {[%clk 0:01:59.4]} 20... Nb8
{[%clk 0:01:49.1]} 21. a4 {[%clk 0:01:46.8]} 21... g5 {[%clk 0:01:48.1]} 22. Nh5
{[%clk 0:01:45.4]} 22... R6f7 {[%clk 0:01:36]} 23. Ng3 {[%clk 0:01:45.1]} 23...
Kh8 {[%clk 0:01:18.7]} 24. Qc3 {[%clk 0:01:28.4]} 24... Rc7 {[%clk 0:01:08.2]}
25. b4 {[%clk 0:01:27.8]} 25... Na6 {[%clk 0:01:00.9]} 26. Rb1 {[%clk
0:01:17.2]} 26... Nb8 {[%clk 0:00:53.5]} 27. b5 {[%clk 0:01:15.9]} 27... Rfc8
{[%clk 0:00:49.8]} 28. Rbc1 {[%clk 0:01:15.7]} 28... Kg8 {[%clk 0:00:41.3]} 29.
Qb3 {[%clk 0:01:15.3]} 29... Kf8 {[%clk 0:00:27.6]} 30. bxc6 {[%clk 0:00:40.9]}
30... Rxc6 {[%clk 0:00:24.2]} 31. Rxc6 {[%clk 0:00:40]} 31... Rxc6 {[%clk
0:00:24]} 32. Rxc6 {[%clk 0:00:37.9]} 32... Nxc6 {[%clk 0:00:24.5]} 33. h3
{[%clk 0:00:37.5]} 33... Na5 {[%clk 0:00:21.1]} 34. Qd1 {[%clk 0:00:37.3]} 34...
Qe6 {[%clk 0:00:13.4]} 35. Qh5 {[%clk 0:00:12.5]} 35... h6 {[%clk 0:00:13.1]}
36. Qe2 {[%clk 0:00:11.2]} 36... Nc4 {[%clk 0:00:12.8]} 37. Qa2 {[%clk
0:00:09.6]} 37... a5 {[%clk 0:00:12.9]} 38. Qb3 {[%clk 0:00:09.5]} 38... Qc6
{[%clk 0:00:12.2]} 39. Qa2 {[%clk 0:00:08.5]} 39... Kf7 {[%clk 0:00:12.1]} 40.
Qb3 {[%clk 0:00:08.4]} 40... Kg6 {[%clk 0:00:11.8]} 41. Kh2 {[%clk 0:00:07.5]}
41... h5 {[%clk 0:00:11.9]} 42. Ne2 {[%clk 0:00:06.6]} 42... Qd6+ {[%clk
0:00:09.1]} 43. Kg1 {[%clk 0:00:06.9]} 43... Qb4 {[%clk 0:00:09.6]} 44. Qc2
{[%clk 0:00:06.8]} 44... Qe1+ {[%clk 0:00:09.2]} 45. Kh2 {[%clk 0:00:06.2]}
45... Qd2 {[%clk 0:00:06.8]} 46. Qxd2 {[%clk 0:00:05.8]} 46... Nxd2 {[%clk
0:00:07.7]} 47. Nc3 {[%clk 0:00:05.5]} 47... Nc4 {[%clk 0:00:06.2]} 48. Nxd5
{[%clk 0:00:06]} 48... Kf7 {[%clk 0:00:04.9]} 49. Nc3 {[%clk 0:00:05.5]} 49...
Nb2 {[%clk 0:00:01.3]} 50. f3 {[%clk 0:00:04.8]} 50... Ke6 {[%clk 0:00:02.2]}
51. fxe4 {[%clk 0:00:04.6]} 51... Nc4 {[%clk 0:00:03.1]} 52. e5 {[%clk
0:00:05.2]} 52... Nxe3 {[%clk 0:00:02.8]} 53. Kg3 {[%clk 0:00:05.5]} 53... Nd5
{[%clk 0:00:03.7]} 54. Kf3 {[%clk 0:00:05.8]} 54... Nxc3 {[%clk 0:00:04.4]} 55.
Ke3 {[%clk 0:00:06.3]} 55... Nd5+ {[%clk 0:00:05.3]} 56. Ke4 {[%clk 0:00:07.2]}
56... Nc7 {[%clk 0:00:05.7]} 57. d5+ {[%clk 0:00:08]} 57... Nxd5 {[%clk
0:00:06.3]} 58. Kd4 {[%clk 0:00:08.9]} 58... Nc7 {[%clk 0:00:07.1]} 59. Kc4
{[%clk 0:00:09.7]} 59... b5+ {[%clk 0:00:07.8]} 60. axb5 {[%clk 0:00:09.7]}
60... Kxe5 {[%clk 0:00:08.1]} 61. b6 {[%clk 0:00:10.6]} 61... Na6 {[%clk
0:00:08.3]} 62. Kb3 {[%clk 0:00:11.5]} 62... Kd6 {[%clk 0:00:08.3]} 63. b7
{[%clk 0:00:12.4]} 63... Kc7 {[%clk 0:00:08.3]} 64. Ka4 {[%clk 0:00:13.3]} 64...
Kxb7 {[%clk 0:00:08.7]} 65. Kxa5 {[%clk 0:00:14.2]} 65... Nc7 {[%clk 0:00:09.4]}
66. Kb4 {[%clk 0:00:14.2]} 66... Kc6 {[%clk 0:00:10.3]} 67. Kc4 {[%clk
0:00:14.2]} 67... Kd6 {[%clk 0:00:11]} 68. Kd4 {[%clk 0:00:14.7]} 68... Ke6
{[%clk 0:00:11.7]} 69. Ke4 {[%clk 0:00:15.6]} 69... Kf6 {[%clk 0:00:12.4]} 70.
h4 {[%clk 0:00:15.4]} 70... g4 {[%clk 0:00:12.2]} 71. Kf4 {[%clk 0:00:15.7]}
71... Ne6+ {[%clk 0:00:13.1]} 72. Ke4 {[%clk 0:00:15.8]} 72... Ng7 {[%clk
0:00:13.6]} 73. Kf4 {[%clk 0:00:14.8]} 73... Nf5 {[%clk 0:00:14.5]} 74. Ke4
{[%clk 0:00:14.3]} 74... Nxh4 {[%clk 0:00:14.7]} 75. Kf4 {[%clk 0:00:14.6]}
75... Nxg2+ {[%clk 0:00:15]} 76. Kg3 {[%clk 0:00:15.1]} 76... Nh4 {[%clk
0:00:15.9]} 77. Kxh4 {[%clk 0:00:16]} 77... Kg6 {[%clk 0:00:16.3]} 78. Kg3
{[%clk 0:00:16.1]} 78... Kg5 {[%clk 0:00:17.2]} 79. Kg2 {[%clk 0:00:16.1]} 79...
h4 {[%clk 0:00:18.1]} 80. Kh2 {[%clk 0:00:17]} 80... Kf4 {[%clk 0:00:18.4]} 81.
Kg2 {[%clk 0:00:17.9]} 81... g3 {[%clk 0:00:18.8]} 82. Kh3 {[%clk 0:00:18.2]}
82... Kf3 {[%clk 0:00:19.3]} 83. Kxh4 {[%clk 0:00:18.3]} 83... g2 {[%clk
0:00:19.7]} 84. Kh3 {[%clk 0:00:19.2]} 84... g1=Q {[%clk 0:00:19.7]} 0-1